[Event "Late-Titled-Tuesday-Blitz-February-06-2024"]
[Site "Chess.com"]
[Date "2024.02.06"]
[Round "11"]
[White "ChEsper99"]
[Black "Pelusiansky"]
[Result "0-1"]
[WhiteElo "2268"]
[BlackElo "2489"]
[TimeControl "180+1"]
[EndTime "16:05:36 PST"]
[Termination "Pelusiansky won by resignation"]

1. e4 {[%clk 0:03:00.1]} 1... c5 {[%clk 0:02:56.7]} 2. Nf3 {[%clk 0:02:59.9]}
2... e6 {[%clk 0:02:57]} 3. g3 {[%clk 0:02:56.9]} 3... Nf6 {[%clk 0:02:55.2]} 4.
Qe2 {[%clk 0:02:50.8]} 4... d6 {[%clk 0:02:52.4]} 5. Bg2 {[%clk 0:02:51]} 5...
Nc6 {[%clk 0:02:52.4]} 6. O-O {[%clk 0:02:51.5]} 6... Be7 {[%clk 0:02:52.2]} 7.
c3 {[%clk 0:02:51.1]} 7... O-O {[%clk 0:02:51.5]} 8. d4 {[%clk 0:02:51.1]} 8...
d5 {[%clk 0:02:50]} 9. e5 {[%clk 0:02:31.2]} 9... Ne4 {[%clk 0:02:49.4]} 10.
Nbd2 {[%clk 0:02:24.8]} 10... Nxd2 {[%clk 0:02:37.4]} 11. Bxd2 {[%clk
0:02:25.7]} 11... b6 {[%clk 0:02:34.6]} 12. Be3 {[%clk 0:02:13.7]} 12... a5
{[%clk 0:02:32.3]} 13. Rfd1 {[%clk 0:02:07.5]} 13... Ba6 {[%clk 0:02:24.5]} 14.
Qc2 {[%clk 0:02:05.2]} 14... Rc8 {[%clk 0:02:18.6]} 15. Qd2 {[%clk 0:01:48.1]}
15... a4 {[%clk 0:02:13.8]} 16. b3 {[%clk 0:01:45]} 16... Na5 {[%clk 0:02:12.1]}
17. Rab1 {[%clk 0:01:41.3]} 17... axb3 {[%clk 0:02:11]} 18. axb3 {[%clk
0:01:41.2]} 18... Qc7 {[%clk 0:02:06.6]} 19. Rdc1 {[%clk 0:01:36.9]} 19... c4
{[%clk 0:02:04.7]} 20. bxc4 {[%clk 0:01:26.6]} 20... Nxc4 {[%clk 0:01:58.2]} 21.
Qe1 {[%clk 0:01:18.2]} 21... Ba3 {[%clk 0:01:50.8]} 22. Rc2 {[%clk 0:01:12.2]}
22... Be7 {[%clk 0:01:44.2]} 23. Ra1 {[%clk 0:01:05.6]} 23... Ra8 {[%clk
0:01:16.8]} 24. Nd2 {[%clk 0:01:01.3]} 24... Bb5 {[%clk 0:01:01.6]} 25. Rca2
{[%clk 0:00:54.8]} 25... Rxa2 {[%clk 0:01:01.3]} 26. Rxa2 {[%clk 0:00:55.7]}
26... Nxe3 {[%clk 0:00:58.1]} 27. Qxe3 {[%clk 0:00:54.8]} 27... Rc8 {[%clk
0:00:58.2]} 28. Nb1 {[%clk 0:00:44.4]} 28... h6 {[%clk 0:00:54.5]} 29. Bf1
{[%clk 0:00:44.7]} 29... Bd7 {[%clk 0:00:31.9]} 30. Qe2 {[%clk 0:00:37.8]} 30...
b5 {[%clk 0:00:28.9]} 31. Qb2 {[%clk 0:00:33.8]} 31... Rb8 {[%clk 0:00:28.6]}
32. Qb3 {[%clk 0:00:21.4]} 32... b4 {[%clk 0:00:22.8]} 33. c4 {[%clk 0:00:17.2]}
33... dxc4 {[%clk 0:00:20.9]} 34. Bxc4 {[%clk 0:00:16.6]} 34... Rc8 {[%clk
0:00:18.9]} 35. Nd2 {[%clk 0:00:16.3]} 35... Qb6 {[%clk 0:00:15.8]} 36. Nf3
{[%clk 0:00:12.2]} 36... Bc6 {[%clk 0:00:14.4]} 37. d5 {[%clk 0:00:12]} 37...
exd5 {[%clk 0:00:13.8]} 38. Bxd5 {[%clk 0:00:12.3]} 38... Bxd5 {[%clk
0:00:14.1]} 39. Qxd5 {[%clk 0:00:12.8]} 39... Qc6 {[%clk 0:00:10]} 40. Qxc6
{[%clk 0:00:08.9]} 40... Rxc6 {[%clk 0:00:10.9]} 41. Rb2 {[%clk 0:00:07.1]}
41... g6 {[%clk 0:00:10.3]} 42. Kf1 {[%clk 0:00:04.2]} 42... Rc1+ {[%clk
0:00:09.9]} 43. Ke2 {[%clk 0:00:04.4]} 43... Rc4 {[%clk 0:00:10.6]} 44. Nd2
{[%clk 0:00:04.1]} 44... Rc3 {[%clk 0:00:09.9]} 45. Rb3 {[%clk 0:00:03.7]} 45...
Rc5 {[%clk 0:00:08.8]} 46. Kd3 {[%clk 0:00:03.6]} 46... Rxe5 {[%clk 0:00:08.7]}
47. Nc4 {[%clk 0:00:03.2]} 47... Rd5+ {[%clk 0:00:09.1]} 48. Ke4 {[%clk
0:00:03.1]} 48... Rd8 {[%clk 0:00:10]} 49. Ne3 {[%clk 0:00:03]} 49... Bc5 {[%clk
0:00:09.9]} 50. Nd5 {[%clk 0:00:03.3]} 50... Kg7 {[%clk 0:00:09.2]} 51. Nxb4
{[%clk 0:00:03.3]} 51... Rd4+ {[%clk 0:00:09.6]} 52. Ke3 {[%clk 0:00:03.3]}
52... Rxb4+ {[%clk 0:00:10.5]} 0-1

[Event "Late-Titled-Tuesday-Blitz-February-06-2024"]
[Site "Chess.com"]
[Date "2024.02.06"]
[Round "11"]
[White "Quaide7"]
[Black "Walter_White_Poland"]
[Result "0-1"]
[WhiteElo "2188"]
[BlackElo "2384"]
[TimeControl "180+1"]
[EndTime "16:05:36 PST"]
[Termination "Walter_White_Poland won by checkmate"]

1. e4 {[%clk 0:02:52.1]} 1... e6 {[%clk 0:02:59.6]} 2. d4 {[%clk 0:02:51.7]}
2... d5 {[%clk 0:02:59.6]} 3. Nd2 {[%clk 0:02:49.4]} 3... c5 {[%clk 0:02:59.1]}
4. Ngf3 {[%clk 0:02:47]} 4... cxd4 {[%clk 0:02:57.7]} 5. Nxd4 {[%clk 0:02:46.3]}
5... Nc6 {[%clk 0:02:56.8]} 6. Bb5 {[%clk 0:02:44.6]} 6... Bd7 {[%clk
0:02:56.4]} 7. Nxc6 {[%clk 0:02:35.5]} 7... bxc6 {[%clk 0:02:57.3]} 8. Bd3
{[%clk 0:02:35.8]} 8... Qc7 {[%clk 0:02:57.4]} 9. O-O {[%clk 0:02:35]} 9... Bd6
{[%clk 0:02:57.2]} 10. h3 {[%clk 0:02:32.8]} 10... Ne7 {[%clk 0:02:56.4]} 11. c4
{[%clk 0:02:22.2]} 11... O-O {[%clk 0:02:55.3]} 12. Nb3 {[%clk 0:02:15.5]} 12...
a5 {[%clk 0:02:37.7]} 13. Bg5 {[%clk 0:01:43.3]} 13... f6 {[%clk 0:02:17.7]} 14.
Bh4 {[%clk 0:01:37.4]} 14... a4 {[%clk 0:02:17.6]} 15. Nd2 {[%clk 0:01:37]}
15... Rfb8 {[%clk 0:02:08]} 16. Qc2 {[%clk 0:01:34]} 16... Ng6 {[%clk
0:02:06.6]} 17. Nf3 {[%clk 0:01:16.5]} 17... Nxh4 {[%clk 0:01:44.1]} 18. Nxh4
{[%clk 0:01:13.9]} 18... Be5 {[%clk 0:01:37.2]} 19. Rab1 {[%clk 0:01:12.5]}
19... dxe4 {[%clk 0:01:29.1]} 20. Bxe4 {[%clk 0:01:12.3]} 20... f5 {[%clk
0:01:29.1]} 21. Bd3 {[%clk 0:01:09.5]} 21... c5 {[%clk 0:01:23.9]} 22. Nf3
{[%clk 0:01:08.9]} 22... Bf6 {[%clk 0:01:23.2]} 23. Rfe1 {[%clk 0:01:08.6]}
23... Re8 {[%clk 0:01:10.2]} 24. Rbd1 {[%clk 0:01:04.4]} 24... Rab8 {[%clk
0:01:06.3]} 25. b3 {[%clk 0:01:04.7]} 25... Bc6 {[%clk 0:01:00.3]} 26. Nd2
{[%clk 0:00:37]} 26... Qf4 {[%clk 0:00:54.8]} 27. Nf1 {[%clk 0:00:33.2]} 27...
Bd4 {[%clk 0:00:48.7]} 28. Ne3 {[%clk 0:00:23.6]} 28... Qg5 {[%clk 0:00:47.2]}
29. Bf1 {[%clk 0:00:19]} 29... f4 {[%clk 0:00:40.4]} 30. Ng4 {[%clk 0:00:18.8]}
30... h5 {[%clk 0:00:39.4]} 31. Nh2 {[%clk 0:00:17.2]} 31... e5 {[%clk
0:00:31.4]} 32. Qd3 {[%clk 0:00:13.5]} 32... Rf8 {[%clk 0:00:27.6]} 33. Nf3
{[%clk 0:00:07]} 33... Qf6 {[%clk 0:00:16.4]} 34. Nxd4 {[%clk 0:00:07.1]} 34...
cxd4 {[%clk 0:00:16]} 35. f3 {[%clk 0:00:07.1]} 35... e4 {[%clk 0:00:15.1]} 36.
fxe4 {[%clk 0:00:07]} 36... Rbd8 {[%clk 0:00:14.2]} 37. Be2 {[%clk 0:00:05.4]}
37... Qe5 {[%clk 0:00:12.9]} 38. Bf3 {[%clk 0:00:05.7]} 38... g5 {[%clk
0:00:11.4]} 39. Bxh5 {[%clk 0:00:04.7]} 39... axb3 {[%clk 0:00:11.2]} 40. axb3
{[%clk 0:00:04.6]} 40... Rf6 {[%clk 0:00:09.4]} 41. b4 {[%clk 0:00:04.4]} 41...
Rh6 {[%clk 0:00:09]} 42. Bg4 {[%clk 0:00:04.5]} 42... Bd7 {[%clk 0:00:07.1]} 43.
b5 {[%clk 0:00:05.2]} 43... Bxg4 {[%clk 0:00:07]} 44. hxg4 {[%clk 0:00:06.1]}
44... f3 {[%clk 0:00:07]} 45. Qxf3 {[%clk 0:00:06.3]} 45... Qh2+ {[%clk
0:00:05.9]} 46. Kf2 {[%clk 0:00:06.4]} 46... Rf8 {[%clk 0:00:06.4]} 47. Rxd4
{[%clk 0:00:06.4]} 47... Rxf3+ {[%clk 0:00:06.3]} 48. Kxf3 {[%clk 0:00:06.9]}
48... Rf6+ {[%clk 0:00:05.4]} 49. Ke2 {[%clk 0:00:06.4]} 49... Qxg2+ {[%clk
0:00:05.3]} 50. Kd1 {[%clk 0:00:06.7]} 50... Rf2 {[%clk 0:00:04.2]} 51. b6
{[%clk 0:00:05.5]} 51... Rb2 {[%clk 0:00:03.8]} 52. Rd8+ {[%clk 0:00:02.4]}
52... Kf7 {[%clk 0:00:03.9]} 53. Rd7+ {[%clk 0:00:03.3]} 53... Ke6 {[%clk
0:00:03.7]} 54. Rd2 {[%clk 0:00:01.5]} 54... Qxd2# {[%clk 0:00:03.3]} 0-1

[Event "Late-Titled-Tuesday-Blitz-February-06-2024"]
[Site "Chess.com"]
[Date "2024.02.06"]
[Round "11"]
[White "Njal28"]
[Black "ameetghasi100"]
[Result "1-0"]
[WhiteElo "3001"]
[BlackElo "2746"]
[TimeControl "180+1"]
[EndTime "16:05:37 PST"]
[Termination "Njal28 won on time"]

1. e4 {[%clk 0:03:00.9]} 1... g6 {[%clk 0:03:00]} 2. d4 {[%clk 0:03:00.1]} 2...
d6 {[%clk 0:03:00.3]} 3. Nf3 {[%clk 0:03:00.4]} 3... Bg7 {[%clk 0:03:00.8]} 4.
Be3 {[%clk 0:03:00.7]} 4... Nf6 {[%clk 0:03:01.4]} 5. Nc3 {[%clk 0:03:00.5]}
5... O-O {[%clk 0:03:01.5]} 6. Qd2 {[%clk 0:02:59.8]} 6... Nc6 {[%clk
0:03:01.1]} 7. Bh6 {[%clk 0:02:57.1]} 7... Bg4 {[%clk 0:03:00]} 8. d5 {[%clk
0:02:26.9]} 8... Bxf3 {[%clk 0:02:50.8]} 9. gxf3 {[%clk 0:02:27.8]} 9... Nd4
{[%clk 0:02:50.2]} 10. O-O-O {[%clk 0:01:58.8]} 10... c5 {[%clk 0:02:24.2]} 11.
dxc6 {[%clk 0:01:54.8]} 11... Nxc6 {[%clk 0:02:23.9]} 12. h4 {[%clk 0:01:53.7]}
12... Qa5 {[%clk 0:02:19.4]} 13. Bxg7 {[%clk 0:01:48.7]} 13... Kxg7 {[%clk
0:02:19.1]} 14. h5 {[%clk 0:01:44.6]} 14... Nxh5 {[%clk 0:01:40.9]} 15. f4
{[%clk 0:01:39.4]} 15... Rac8 {[%clk 0:01:08.5]} 16. Bc4 {[%clk 0:01:30.6]}
16... e6 {[%clk 0:00:42.4]} 17. f5 {[%clk 0:01:28.1]} 17... Qe5 {[%clk 0:00:38]}
18. Kb1 {[%clk 0:01:23.4]} 18... Kh8 {[%clk 0:00:29.6]} 19. Rdg1 {[%clk
0:01:15]} 19... Nd4 {[%clk 0:00:25]} 20. Be2 {[%clk 0:01:13.3]} 20... Nf4 {[%clk
0:00:23.2]} 21. Bd1 {[%clk 0:01:03.9]} 21... exf5 {[%clk 0:00:22.9]} 22. exf5
{[%clk 0:01:04.8]} 22... Nxf5 {[%clk 0:00:23.1]} 23. Rg4 {[%clk 0:01:00.9]}
23... Ne6 {[%clk 0:00:20.3]} 24. Re4 {[%clk 0:01:00]} 24... Qg7 {[%clk
0:00:17.4]} 25. Nd5 {[%clk 0:00:59.1]} 25... Nc5 {[%clk 0:00:14.1]} 26. Rc4
{[%clk 0:00:53.4]} 26... Rce8 {[%clk 0:00:13.3]} 27. Bf3 {[%clk 0:00:42.9]}
27... b5 {[%clk 0:00:12.3]} 28. Rg4 {[%clk 0:00:38.2]} 28... Re5 {[%clk
0:00:12.1]} 29. a3 {[%clk 0:00:30.2]} 29... Rfe8 {[%clk 0:00:11.7]} 30. Nc7
{[%clk 0:00:30.4]} 30... Rb8 {[%clk 0:00:07.5]} 31. Rg2 {[%clk 0:00:28.4]} 31...
Ne6 {[%clk 0:00:06]} 32. Nxe6 {[%clk 0:00:16.8]} 32... fxe6 {[%clk 0:00:06.9]}
33. Rgh2 {[%clk 0:00:15.8]} 33... h5 {[%clk 0:00:05.6]} 34. Bxh5 {[%clk
0:00:14.4]} 34... gxh5 {[%clk 0:00:06.5]} 35. Rxh5+ {[%clk 0:00:15]} 35... Kg8
{[%clk 0:00:06]} 36. Rg5 {[%clk 0:00:15.4]} 36... Rf8 {[%clk 0:00:05.4]} 37.
Rxg7+ {[%clk 0:00:15.5]} 37... Nxg7 {[%clk 0:00:06.3]} 38. Qh6 {[%clk
0:00:15.4]} 38... Ref5 {[%clk 0:00:05.5]} 39. Rg1 {[%clk 0:00:15.1]} 39... R8f7
{[%clk 0:00:05.7]} 40. f4 {[%clk 0:00:14.1]} 40... Kf8 {[%clk 0:00:04.2]} 41.
Qh8+ {[%clk 0:00:13.8]} 41... Ke7 {[%clk 0:00:04.8]} 42. Rxg7 {[%clk 0:00:14.5]}
42... Rxf4 {[%clk 0:00:05.4]} 43. Rxf7+ {[%clk 0:00:14.8]} 43... Rxf7 {[%clk
0:00:05.5]} 44. Qa8 {[%clk 0:00:15.7]} 44... d5 {[%clk 0:00:04.5]} 45. Qxa7+
{[%clk 0:00:15.9]} 45... Kf6 {[%clk 0:00:05.4]} 46. Qf2+ {[%clk 0:00:15.7]}
46... Ke7 {[%clk 0:00:05.6]} 47. Qc5+ {[%clk 0:00:16.4]} 47... Kf6 {[%clk
0:00:06.5]} 48. Qxb5 {[%clk 0:00:17.1]} 48... Ke5 {[%clk 0:00:05.9]} 49. a4
{[%clk 0:00:17.3]} 49... Kf4 {[%clk 0:00:05.8]} 50. Qf1+ {[%clk 0:00:16.8]}
50... Ke3 {[%clk 0:00:06.2]} 51. Qxf7 {[%clk 0:00:17.7]} 51... e5 {[%clk
0:00:07.1]} 52. Qxd5 {[%clk 0:00:17.9]} 52... e4 {[%clk 0:00:08]} 53. a5 {[%clk
0:00:18.6]} 53... Kf2 {[%clk 0:00:08.1]} 54. Qxe4 {[%clk 0:00:18.3]} 54... Kf1
{[%clk 0:00:08.3]} 55. Qe3 {[%clk 0:00:14.9]} 55... Kg2 {[%clk 0:00:07.8]} 56.
Kc1 {[%clk 0:00:15.2]} 56... Kf1 {[%clk 0:00:08.7]} 57. Qd2 {[%clk 0:00:15.4]}
57... Kg1 {[%clk 0:00:08.9]} 58. Qe2 {[%clk 0:00:16.1]} 58... Kh1 {[%clk
0:00:08.9]} 59. Kd2 {[%clk 0:00:17]} 59... Kg1 {[%clk 0:00:09.8]} 60. Ke3 {[%clk
0:00:17.9]} 60... Kh1 {[%clk 0:00:10.5]} 61. Kf3 {[%clk 0:00:18.8]} 61... Kg1
{[%clk 0:00:10.2]} 62. Kg3 {[%clk 0:00:19.7]} 1-0

[Event "Late-Titled-Tuesday-Blitz-February-06-2024"]
[Site "Chess.com"]
[Date "2024.02.06"]
[Round "11"]
[White "hakanazeri2"]
[Black "YouShallNotPass001"]
[Result "1-0"]
[WhiteElo "2642"]
[BlackElo "2482"]
[TimeControl "180+1"]
[EndTime "16:05:42 PST"]
[Termination "hakanazeri2 won by checkmate"]

1. c4 {[%clk 0:03:00.9]} 1... Nf6 {[%clk 0:02:56.9]} 2. Nf3 {[%clk 0:02:59.7]}
2... e6 {[%clk 0:02:57.8]} 3. g3 {[%clk 0:02:58.3]} 3... c5 {[%clk 0:02:58.7]}
4. Bg2 {[%clk 0:02:59.2]} 4... a6 {[%clk 0:02:58.1]} 5. O-O {[%clk 0:02:58.4]}
5... Be7 {[%clk 0:02:58.7]} 6. Nc3 {[%clk 0:02:58.8]} 6... O-O {[%clk
0:02:59.1]} 7. b3 {[%clk 0:02:58.2]} 7... d6 {[%clk 0:02:58.5]} 8. Bb2 {[%clk
0:02:57.6]} 8... Qc7 {[%clk 0:02:59.1]} 9. d4 {[%clk 0:02:55.8]} 9... b6 {[%clk
0:02:58.5]} 10. e4 {[%clk 0:02:51.4]} 10... cxd4 {[%clk 0:02:57.8]} 11. Nxd4
{[%clk 0:02:50.5]} 11... Bb7 {[%clk 0:02:57.8]} 12. Re1 {[%clk 0:02:50.6]} 12...
Nbd7 {[%clk 0:02:57.5]} 13. Qd2 {[%clk 0:02:45.9]} 13... Rac8 {[%clk 0:02:57.1]}
14. Rac1 {[%clk 0:02:40.7]} 14... Qb8 {[%clk 0:02:56]} 15. h3 {[%clk 0:02:36]}
15... Rfd8 {[%clk 0:02:55.4]} 16. Ba3 {[%clk 0:02:32.5]} 16... Qa8 {[%clk
0:02:54.1]} 17. Nc2 {[%clk 0:02:25.3]} 17... Nc5 {[%clk 0:02:49.4]} 18. Qe3
{[%clk 0:02:19.2]} 18... Bf8 {[%clk 0:02:42.6]} 19. Bb2 {[%clk 0:02:14.4]} 19...
b5 {[%clk 0:02:36.1]} 20. cxb5 {[%clk 0:02:01]} 20... axb5 {[%clk 0:02:37]} 21.
Nxb5 {[%clk 0:01:46.7]} 21... Qxa2 {[%clk 0:02:16.9]} 22. Bxf6 {[%clk
0:01:39.6]} 22... gxf6 {[%clk 0:02:17.8]} 23. Ncd4 {[%clk 0:01:27.9]} 23... Qa5
{[%clk 0:01:49.4]} 24. Rb1 {[%clk 0:01:06]} 24... Qb4 {[%clk 0:01:37.7]} 25. Nc3
{[%clk 0:00:58.9]} 25... Nd7 {[%clk 0:01:18.9]} 26. Rec1 {[%clk 0:00:53.7]}
26... Bg7 {[%clk 0:01:06.2]} 27. Na2 {[%clk 0:00:45.8]} 27... Qa5 {[%clk
0:00:59.6]} 28. Nc3 {[%clk 0:00:43.3]} 28... Qb4 {[%clk 0:00:56.9]} 29. Nde2
{[%clk 0:00:36]} 29... Nc5 {[%clk 0:00:49.3]} 30. Na2 {[%clk 0:00:30.4]} 30...
Qa3 {[%clk 0:00:45.1]} 31. Nac3 {[%clk 0:00:27.4]} 31... Ba6 {[%clk 0:00:35.1]}
32. Nd4 {[%clk 0:00:21.1]} 32... Qb4 {[%clk 0:00:28.4]} 33. Nce2 {[%clk
0:00:15.3]} 33... Nd3 {[%clk 0:00:19.7]} 34. Rd1 {[%clk 0:00:15.1]} 34... Nc5
{[%clk 0:00:15.8]} 35. Nf4 {[%clk 0:00:13.3]} 35... e5 {[%clk 0:00:14.6]} 36.
Nf5 {[%clk 0:00:08.6]} 36... exf4 {[%clk 0:00:14]} 37. Qxf4 {[%clk 0:00:09.5]}
37... Ne6 {[%clk 0:00:13.6]} 38. Qg4 {[%clk 0:00:09.7]} 38... Kf8 {[%clk
0:00:13.4]} 39. Ra1 {[%clk 0:00:07.8]} 39... Qb6 {[%clk 0:00:11.9]} 40. Bf1
{[%clk 0:00:04.3]} 40... Bxf1 {[%clk 0:00:11.2]} 41. Rxf1 {[%clk 0:00:05.2]}
41... Qxb3 {[%clk 0:00:10.4]} 42. Qh5 {[%clk 0:00:05.5]} 42... Qb7 {[%clk
0:00:10.4]} 43. Qxh7 {[%clk 0:00:05.5]} 43... Qxe4 {[%clk 0:00:09.8]} 44. Rfe1
{[%clk 0:00:04.1]} 44... Qc2 {[%clk 0:00:08.5]} 45. Rxe6 {[%clk 0:00:04]} 45...
Qxf5 {[%clk 0:00:06.1]} 46. Qxf5 {[%clk 0:00:03.5]} 46... fxe6 {[%clk 0:00:07]}
47. Qxe6 {[%clk 0:00:04.2]} 47... Rc7 {[%clk 0:00:07.6]} 48. Re1 {[%clk
0:00:04.1]} 48... Rf7 {[%clk 0:00:07.7]} 49. Qd5 {[%clk 0:00:04.1]} 49... Rfd7
{[%clk 0:00:07.1]} 50. h4 {[%clk 0:00:04.7]} 50... Rf7 {[%clk 0:00:07.5]} 51. h5
{[%clk 0:00:05.2]} 51... Bh6 {[%clk 0:00:07.8]} 52. Qf5 {[%clk 0:00:04.6]} 52...
Bd2 {[%clk 0:00:06.3]} 53. Re2 {[%clk 0:00:04.7]} 53... Bc3 {[%clk 0:00:06.5]}
54. h6 {[%clk 0:00:04.9]} 54... Ra8 {[%clk 0:00:05.3]} 55. Qg6 {[%clk
0:00:04.7]} 55... Raa7 {[%clk 0:00:05.1]} 56. h7 {[%clk 0:00:04.9]} 56... Rxh7
{[%clk 0:00:04.6]} 57. Re8# {[%clk 0:00:04.6]} 1-0

[Event "Late-Titled-Tuesday-Blitz-February-06-2024"]
[Site "Chess.com"]
[Date "2024.02.06"]
[Round "11"]
[White "HajiyevKanan"]
[Black "terrortoast"]
[Result "0-1"]
[WhiteElo "2575"]
[BlackElo "2451"]
[TimeControl "180+1"]
[EndTime "16:05:49 PST"]
[Termination "terrortoast won on time"]

1. d4 {[%clk 0:02:42.3]} 1... Nf6 {[%clk 0:02:59]} 2. Nf3 {[%clk 0:02:43.2]}
2... g6 {[%clk 0:02:58.9]} 3. g3 {[%clk 0:02:42.4]} 3... Bg7 {[%clk 0:02:58.6]}
4. Bg2 {[%clk 0:02:43.3]} 4... d5 {[%clk 0:02:58.9]} 5. O-O {[%clk 0:02:44.2]}
5... O-O {[%clk 0:02:59.4]} 6. b3 {[%clk 0:02:44.7]} 6... a5 {[%clk 0:02:56.5]}
7. a3 {[%clk 0:02:44.5]} 7... a4 {[%clk 0:02:54.6]} 8. b4 {[%clk 0:02:44.6]}
8... Ne4 {[%clk 0:02:50]} 9. Bb2 {[%clk 0:02:43.4]} 9... c6 {[%clk 0:02:41.4]}
10. Nfd2 {[%clk 0:02:40.2]} 10... Nd6 {[%clk 0:02:40.6]} 11. e4 {[%clk
0:02:27.2]} 11... dxe4 {[%clk 0:02:38]} 12. Nxe4 {[%clk 0:02:28.1]} 12... Nd7
{[%clk 0:02:28.5]} 13. Nbd2 {[%clk 0:02:24.4]} 13... Nb6 {[%clk 0:02:08.2]} 14.
Nxd6 {[%clk 0:02:14.1]} 14... exd6 {[%clk 0:02:06.5]} 15. c4 {[%clk 0:02:14.3]}
15... d5 {[%clk 0:02:03]} 16. c5 {[%clk 0:02:11.3]} 16... Nd7 {[%clk 0:01:53.6]}
17. Re1 {[%clk 0:02:08.1]} 17... Nf6 {[%clk 0:01:51.9]} 18. Nb1 {[%clk
0:01:59.4]} 18... Bg4 {[%clk 0:01:42.5]} 19. Qc2 {[%clk 0:01:54.8]} 19... h5
{[%clk 0:01:21.5]} 20. Nc3 {[%clk 0:01:53.7]} 20... h4 {[%clk 0:01:21.7]} 21.
Nxa4 {[%clk 0:01:47.2]} 21... h3 {[%clk 0:01:20.8]} 22. Bh1 {[%clk 0:01:46.9]}
22... Bf5 {[%clk 0:01:15.1]} 23. Qb3 {[%clk 0:01:44.6]} 23... Be4 {[%clk
0:01:15.7]} 24. f3 {[%clk 0:01:39.7]} 24... Bf5 {[%clk 0:01:00.9]} 25. Nb6
{[%clk 0:01:40.2]} 25... Rb8 {[%clk 0:00:58.5]} 26. a4 {[%clk 0:01:40.5]} 26...
Qc7 {[%clk 0:00:49.9]} 27. Bc1 {[%clk 0:01:39]} 27... Rbe8 {[%clk 0:00:46.4]}
28. Bf4 {[%clk 0:01:39.2]} 28... Qd8 {[%clk 0:00:46]} 29. Be5 {[%clk 0:01:38.7]}
29... Bh6 {[%clk 0:00:32.8]} 30. Qc3 {[%clk 0:01:24.6]} 30... Re6 {[%clk
0:00:18.9]} 31. g4 {[%clk 0:01:15.5]} 31... Bxg4 {[%clk 0:00:10.4]} 32. fxg4
{[%clk 0:01:15.9]} 32... Nxg4 {[%clk 0:00:10.6]} 33. Qxh3 {[%clk 0:01:12.7]}
33... Qg5 {[%clk 0:00:10.6]} 34. Qg3 {[%clk 0:01:09]} 34... Rfe8 {[%clk
0:00:08.4]} 35. Bf3 {[%clk 0:00:35.6]} 35... Nxe5 {[%clk 0:00:06.4]} 36. dxe5
{[%clk 0:00:31.7]} 36... Rxe5 {[%clk 0:00:05.6]} 37. Rxe5 {[%clk 0:00:25.9]}
37... Rxe5 {[%clk 0:00:02.8]} 38. Qxg5 {[%clk 0:00:25.8]} 38... Bxg5 {[%clk
0:00:03]} 39. b5 {[%clk 0:00:18.5]} 39... Be3+ {[%clk 0:00:02.5]} 40. Kg2 {[%clk
0:00:17.8]} 40... Bxc5 {[%clk 0:00:02.9]} 41. bxc6 {[%clk 0:00:18.4]} 41... bxc6
{[%clk 0:00:02.4]} 42. Nd7 {[%clk 0:00:18.3]} 42... Rg5+ {[%clk 0:00:02.5]} 43.
Kh1 {[%clk 0:00:15.2]} 43... Bd4 {[%clk 0:00:03.4]} 44. Rd1 {[%clk 0:00:10.6]}
44... Ba7 {[%clk 0:00:03.7]} 45. a5 {[%clk 0:00:06.5]} 45... f6 {[%clk
0:00:02.4]} 46. Nxf6+ {[%clk 0:00:05.6]} 46... Kf7 {[%clk 0:00:02.7]} 47. Ng4
{[%clk 0:00:05]} 47... Ke6 {[%clk 0:00:02.6]} 48. Kg2 {[%clk 0:00:04.9]} 48...
Kd7 {[%clk 0:00:02.7]} 49. h4 {[%clk 0:00:05.4]} 49... Rf5 {[%clk 0:00:02.7]}
50. Rf1 {[%clk 0:00:04.2]} 50... Kc7 {[%clk 0:00:02.8]} 51. Rb1 {[%clk
0:00:03.2]} 51... Rf4 {[%clk 0:00:02.4]} 52. a6 {[%clk 0:00:03.4]} 52... Bb6
{[%clk 0:00:02.3]} 53. Ra1 {[%clk 0:00:03.5]} 53... Rb4 {[%clk 0:00:02.5]} 54.
Ne5 {[%clk 0:00:02.9]} 54... Rb2+ {[%clk 0:00:03.4]} 55. Kg3 {[%clk 0:00:03.1]}
55... Ba7 {[%clk 0:00:03.8]} 56. Nxg6 {[%clk 0:00:02.3]} 56... d4 {[%clk
0:00:03.6]} 57. h5 {[%clk 0:00:02.3]} 57... d3 {[%clk 0:00:03.8]} 58. Rd1 {[%clk
0:00:02.3]} 58... d2 {[%clk 0:00:04]} 59. Kg4 {[%clk 0:00:01.9]} 59... c5 {[%clk
0:00:04]} 60. Ne5 {[%clk 0:00:01.8]} 60... Rb4+ {[%clk 0:00:03.3]} 0-1